[Event "2026 Biel Blitz Open"]
[Site "Biel, CH"]
[Date "2026.07.19"]
[Round "9"]
[White "Omar, Noaman"]
[Black "Nguyen Thi Mai Hung"]
[Result "1-0"]
[Board "18"]
[TimeControl "180+2"]
[WhiteFideId "9300244"]
[BlackFideId "12401676"]
[WhiteElo "2274"]
[BlackElo "2039"]
[WhiteTitle "IM"]
[BlackTitle "WGM"]
[WhiteClock "0:00:13"]
[BlackClock "0:00:07"]
[Variant "Standard"]
[EndDate "2026.07.19"]
[EndTime "14:39:06"]

1. d4 {[%clk 0:03:03]}  d5 {[%clk 0:03:04]} 2. c4 {[%clk 0:03:04]}  c6 {[%clk 0:03:05]} 3. cxd5 {[%clk 0:03:02]}  cxd5 {[%clk 0:03:06]}
4. Bg5 {[%clk 0:03:02]}  Nc6 {[%clk 0:03:04]} 5. Nc3 {[%clk 0:03:03]}  h6 {[%clk 0:03:05]} 6. Bh4 {[%clk 0:03:04]}  g5 {[%clk 0:02:59]}
7. Bg3 {[%clk 0:03:05]}  Bg7 {[%clk 0:02:59]} 8. e3 {[%clk 0:03:05]}  Nf6 {[%clk 0:03:00]} 9. h4 {[%clk 0:03:06]}  a6 {[%clk 0:02:38]}
10. hxg5 {[%clk 0:03:05]}  hxg5 {[%clk 0:02:39]} 11. Rxh8+ {[%clk 0:03:04]}  Bxh8 {[%clk 0:02:39]} 12. Nf3 {[%clk 0:03:00]}  g4 {[%clk 0:02:30]}
13. Ne5 {[%clk 0:03:00]}  Qb6 {[%clk 0:02:21]} 14. Qd2 {[%clk 0:02:04]}  Bf5 {[%clk 0:02:16]} 15. Nxc6 {[%clk 0:01:28]}  Qxc6 {[%clk 0:02:17]}
16. Rc1 {[%clk 0:01:24]}  Rc8 {[%clk 0:02:18]} 17. f3 {[%clk 0:00:53]}  Qd7 {[%clk 0:01:37]} 18. Be5 {[%clk 0:00:50]}  Bg7 {[%clk 0:01:19]}
19. Be2 {[%clk 0:00:47]}  gxf3 {[%clk 0:01:16]} 20. gxf3 {[%clk 0:00:44]}  Qe6 {[%clk 0:00:54]} 21. Na4 {[%clk 0:00:30]}  Rxc1+ {[%clk 0:00:47]}
22. Qxc1 {[%clk 0:00:30]}  Bh6 {[%clk 0:00:38]} 23. Kf2 {[%clk 0:00:17]}  Qc8 {[%clk 0:00:20]} 24. Qh1 {[%clk 0:00:17]}  Bg7 {[%clk 0:00:17]}
25. Nc5 {[%clk 0:00:17]}  Kf8 {[%clk 0:00:14]} 26. Qg2 {[%clk 0:00:17]}  a5 {[%clk 0:00:14]} 27. Qg5 {[%clk 0:00:15]}  b6 {[%clk 0:00:13]}
28. Nd3 {[%clk 0:00:15]}  Ne8 {[%clk 0:00:05]} 29. Bxg7+ {[%clk 0:00:16]}  Nxg7 {[%clk 0:00:05]} 30. Qh6 {[%clk 0:00:16]}  Kg8 {[%clk 0:00:05]}
31. Qxb6 {[%clk 0:00:17]}  Qc2 {[%clk 0:00:04]} 32. Qb8+ {[%clk 0:00:18]}  Kh7 {[%clk 0:00:05]} 33. Qh2+ {[%clk 0:00:17]}  Kg8 {[%clk 0:00:06]}
34. Qb8+ {[%clk 0:00:18]}  Kh7 {[%clk 0:00:07]} 35. Nf4 {[%clk 0:00:17]}  a4 {[%clk 0:00:06]} 36. Qb4 {[%clk 0:00:17]}  e6 {[%clk 0:00:05]}
37. a3 {[%clk 0:00:14]}  Ne8 {[%clk 0:00:04]} 38. Qe7 {[%clk 0:00:17]}  Ng7 {[%clk 0:00:04]} 39. Qxf7 {[%clk 0:00:17]}  Qxb2 {[%clk 0:00:05]}
40. Qe7 {[%clk 0:00:17]}  Qc2 {[%clk 0:00:04]} 41. Nh5 {[%clk 0:00:17]}  Kg6 {[%clk 0:00:03]} 42. Nxg7 {[%clk 0:00:17]}  Bd3 {[%clk 0:00:04]}
43. Nxe6 {[%clk 0:00:13]}  Qxe2+ {[%clk 0:00:05]} 44. Kg3 {[%clk 0:00:14]}  Qe1+ {[%clk 0:00:06]} 45. Kf4 {[%clk 0:00:12]}  Qf2 {[%clk 0:00:06]}
46. Qg7+ {[%clk 0:00:12]}  Kh5 {[%clk 0:00:07]} 47. Qg5+ {[%clk 0:00:13]} 1-0

[Event "2026 Biel Blitz Open"]
[Site "Biel, CH"]
[Date "2026.07.19"]
[Round "9"]
[White "Bajraktari, Perparim"]
[Black "Gluckman, David"]
[Result "1-0"]
[Board "19"]
[TimeControl "180+2"]
[WhiteFideId "1307711"]
[BlackFideId "14300010"]
[WhiteElo "2045"]
[BlackElo "2240"]
[BlackTitle "IM"]
[WhiteClock "0:03:02"]
[BlackClock "0:03:02"]
[Variant "Standard"]
[EndDate "2026.07.19"]
[EndTime "14:45:50"]

1. c4 {[%clk 0:03:02]}  Nf6 {[%clk 0:03:02]} 2. Nf3 {[%clk 0:03:03]}  g6 {[%clk 0:03:01]} 3. Nc3 {[%clk 0:03:04]}  d5 {[%clk 0:03:03]}
4. cxd5 {[%clk 0:03:05]}  Nxd5 {[%clk 0:03:04]} 5. g3 {[%clk 0:03:05]}  Bg7 {[%clk 0:03:01]} 6. Bg2 {[%clk 0:03:06]}  O-O {[%clk 0:02:57]}
7. O-O {[%clk 0:03:07]}  c5 {[%clk 0:02:49]} 8. a3 {[%clk 0:03:00]}  Nc6 {[%clk 0:02:49]} 9. d3 {[%clk 0:02:54]}  h6 {[%clk 0:02:19]}
10. Bd2 {[%clk 0:02:52]}  Be6 {[%clk 0:02:16]} 11. Rc1 {[%clk 0:02:51]}  b6 {[%clk 0:02:14]} 12. Nxd5 {[%clk 0:02:38]}  Bxd5 {[%clk 0:02:15]}
13. Bc3 {[%clk 0:02:40]}  Nd4 {[%clk 0:02:09]} 14. Bxd4 {[%clk 0:02:36]}  cxd4 {[%clk 0:02:10]} 15. Qa4 {[%clk 0:02:28]}  e5 {[%clk 0:02:03]}
16. Nd2 {[%clk 0:02:26]}  Bxg2 {[%clk 0:02:03]} 17. Kxg2 {[%clk 0:02:27]}  Qd5+ {[%clk 0:02:04]} 18. f3 {[%clk 0:02:27]}  f5 {[%clk 0:02:01]}
19. Qc6 {[%clk 0:02:22]}  Qf7 {[%clk 0:01:48]} 20. Qc4 {[%clk 0:02:23]}  Rae8 {[%clk 0:01:35]} 21. b4 {[%clk 0:02:18]}  Re7 {[%clk 0:01:35]}
22. b5 {[%clk 0:02:15]}  g5 {[%clk 0:01:33]} 23. h3 {[%clk 0:02:15]}  Kh7 {[%clk 0:01:33]} 24. Qxf7 {[%clk 0:02:15]}  Rfxf7 {[%clk 0:01:35]}
25. Rc6 {[%clk 0:02:11]}  h5 {[%clk 0:01:30]} 26. a4 {[%clk 0:02:09]}  Bh6 {[%clk 0:01:26]} 27. Nc4 {[%clk 0:01:59]}  e4 {[%clk 0:01:20]}
28. dxe4 {[%clk 0:01:52]}  fxe4 {[%clk 0:01:20]} 29. Nd6 {[%clk 0:01:41]}  exf3+ {[%clk 0:01:19]} 30. exf3 {[%clk 0:01:31]}  Rf6 {[%clk 0:01:19]}
31. Ne4 {[%clk 0:01:29]}  Rfe6 {[%clk 0:01:12]} 32. Rd1 {[%clk 0:01:23]}  g4 {[%clk 0:01:13]} 33. hxg4 {[%clk 0:01:24]}  hxg4 {[%clk 0:01:14]}
34. Nf6+ {[%clk 0:01:20]}  Kg7 {[%clk 0:00:44]} 35. Nxg4 {[%clk 0:01:16]}  Re2+ {[%clk 0:00:45]} 36. Kh3 {[%clk 0:01:19]}  Be3 {[%clk 0:00:43]}
37. f4 {[%clk 0:01:04]}  Re8 {[%clk 0:00:40]} 38. Ne5 {[%clk 0:01:03]}  Rh8+ {[%clk 0:00:25]} 39. Kg4 {[%clk 0:01:03]}  Rg2 {[%clk 0:00:18]}
40. Rc7+ {[%clk 0:00:50]}  Kf6 {[%clk 0:00:26]} 41. Rc6+ {[%clk 0:00:43]}  Kg7 {[%clk 0:00:24]} 42. f5 {[%clk 0:00:39]}  Re8 {[%clk 0:00:18]}
43. f6+ {[%clk 0:00:38]}  Kf8 {[%clk 0:00:15]} 44. Ng6+ {[%clk 0:00:11]}  Kf7 {[%clk 0:00:16]} 45. Nf4 {[%clk 0:00:13]}  Rg8+ {[%clk 0:00:15]}
46. Kf5 {[%clk 0:00:13]}  Bxf4 {[%clk 0:00:15]} 47. gxf4 {[%clk 0:00:10]}  Rd8 {[%clk 0:00:00]} 48. Rc7+ {[%clk 0:00:07]}  Kf8 {[%clk 0:03:02]}
49. Rh1 {[%clk 0:03:02]} 1-0

[Event "2026 Biel Blitz Open"]
[Site "Biel, CH"]
[Date "2026.07.19"]
[Round "9"]
[White "Liu, Bei"]
[Black "Python, Noe"]
[Result "1-0"]
[Board "20"]
[TimeControl "180+2"]
[WhiteFideId "8603596"]
[BlackFideId "1337637"]
[WhiteElo "2170"]
[BlackElo "2010"]
[WhiteClock "0:01:28"]
[BlackClock "0:00:07"]
[Variant "Standard"]
[EndDate "2026.07.19"]
[EndTime "14:37:10"]

1. e4 {[%clk 0:03:03]}  c6 {[%clk 0:03:02]} 2. d4 {[%clk 0:03:04]}  d5 {[%clk 0:03:06]} 3. e5 {[%clk 0:03:06]}  c5 {[%clk 0:03:07]}
4. dxc5 {[%clk 0:03:06]}  e6 {[%clk 0:03:09]} 5. a3 {[%clk 0:03:07]}  Bxc5 {[%clk 0:03:09]} 6. b4 {[%clk 0:03:09]}  Be7 {[%clk 0:03:11]}
7. Nf3 {[%clk 0:03:09]}  a5 {[%clk 0:03:12]} 8. b5 {[%clk 0:03:09]}  f6 {[%clk 0:03:12]} 9. Bb2 {[%clk 0:03:09]}  Nd7 {[%clk 0:03:13]}
10. c4 {[%clk 0:03:10]}  Nc5 {[%clk 0:02:57]} 11. Nc3 {[%clk 0:03:01]}  dxc4 {[%clk 0:02:28]} 12. Bxc4 {[%clk 0:02:55]}  Qxd1+ {[%clk 0:02:08]}
13. Rxd1 {[%clk 0:02:56]}  f5 {[%clk 0:02:10]} 14. O-O {[%clk 0:02:25]}  Nh6 {[%clk 0:01:49]} 15. b6 {[%clk 0:02:05]}  O-O {[%clk 0:01:19]}
16. Nb5 {[%clk 0:02:04]}  Bd7 {[%clk 0:01:12]} 17. Nc7 {[%clk 0:02:03]}  Rad8 {[%clk 0:00:52]} 18. Nd4 {[%clk 0:02:00]}  Kf7 {[%clk 0:00:47]}
19. h3 {[%clk 0:01:48]}  g6 {[%clk 0:00:44]} 20. Bc3 {[%clk 0:01:33]}  a4 {[%clk 0:00:20]} 21. Bb4 {[%clk 0:01:32]}  g5 {[%clk 0:00:10]}
22. Bxc5 {[%clk 0:01:28]}  Bxc5 {[%clk 0:00:10]} 23. Ndxe6 {[%clk 0:01:28]}  Bxb6 {[%clk 0:00:08]} 24. Nxd8+ {[%clk 0:01:28]}  Ke7 {[%clk 0:00:07]}
25. Nd5+ {[%clk 0:01:27]}  Kxd8 {[%clk 0:00:07]} 26. Nxb6 {[%clk 0:01:28]} 1-0

[Event "2026 Biel Blitz Open"]
[Site "Biel, CH"]
[Date "2026.07.19"]
[Round "9"]
[White "Dietiker, Manuel"]
[Black "Fernandes Barbosa Dos Santos, Gabriel"]
[Result "0-1"]
[Board "21"]
[TimeControl "180+2"]
[WhiteFideId "1317377"]
[BlackFideId "1354388"]
[WhiteElo "2002"]
[BlackElo "2167"]
[BlackTitle "CM"]
[WhiteClock "0:00:23"]
[BlackClock "0:00:13"]
[Variant "Standard"]
[EndDate "2026.07.19"]
[EndTime "14:38:17"]

1. e4 {[%clk 0:03:02]}  c5 {[%clk 0:03:03]} 2. Nf3 {[%clk 0:03:02]}  d6 {[%clk 0:03:04]} 3. d4 {[%clk 0:03:03]}  cxd4 {[%clk 0:03:04]}
4. Nxd4 {[%clk 0:03:04]}  Nf6 {[%clk 0:03:04]} 5. Nc3 {[%clk 0:03:05]}  g6 {[%clk 0:03:05]} 6. Be3 {[%clk 0:03:05]}  Bg7 {[%clk 0:03:05]}
7. f3 {[%clk 0:03:05]}  O-O {[%clk 0:03:05]} 8. Qd2 {[%clk 0:03:06]}  Nc6 {[%clk 0:03:05]} 9. O-O-O {[%clk 0:03:06]}  Nxd4 {[%clk 0:03:04]}
10. Bxd4 {[%clk 0:03:06]}  Be6 {[%clk 0:03:05]} 11. Kb1 {[%clk 0:03:02]}  Qc7 {[%clk 0:03:05]} 12. g4 {[%clk 0:02:58]}  Rfc8 {[%clk 0:03:02]}
13. h4 {[%clk 0:02:48]}  Qa5 {[%clk 0:03:00]} 14. Nd5 {[%clk 0:02:40]}  Qxd2 {[%clk 0:02:59]} 15. Nxf6+ {[%clk 0:02:38]}  Bxf6 {[%clk 0:02:57]}
16. Rxd2 {[%clk 0:02:38]}  Bxd4 {[%clk 0:02:39]} 17. Rxd4 {[%clk 0:02:39]}  Rc5 {[%clk 0:02:35]} 18. c3 {[%clk 0:02:30]}  b5 {[%clk 0:02:29]}
19. Be2 {[%clk 0:02:13]}  a5 {[%clk 0:02:29]} 20. a3 {[%clk 0:02:06]}  Rb8 {[%clk 0:02:27]} 21. f4 {[%clk 0:02:02]}  f5 {[%clk 0:02:09]}
22. exf5 {[%clk 0:01:56]}  gxf5 {[%clk 0:02:07]} 23. g5 {[%clk 0:01:56]}  Bd5 {[%clk 0:02:05]} 24. Rhd1 {[%clk 0:01:53]}  Be4+ {[%clk 0:02:03]}
25. Bd3 {[%clk 0:01:54]}  Bxd3+ {[%clk 0:01:56]} 26. R1xd3 {[%clk 0:01:55]}  Kf7 {[%clk 0:01:53]} 27. h5 {[%clk 0:01:49]}  Ke6 {[%clk 0:01:37]}
28. Rg3 {[%clk 0:01:35]}  Kf7 {[%clk 0:01:30]} 29. Re3 {[%clk 0:01:30]}  Rg8 {[%clk 0:01:16]} 30. Red3 {[%clk 0:01:28]}  Ke6 {[%clk 0:01:15]}
31. Kc2 {[%clk 0:01:22]}  Kd7 {[%clk 0:01:10]} 32. Rd5 {[%clk 0:01:19]}  Rgc8 {[%clk 0:00:55]} 33. Rxc5 {[%clk 0:01:11]}  Rxc5 {[%clk 0:00:56]}
34. b4 {[%clk 0:01:08]}  axb4 {[%clk 0:00:51]} 35. axb4 {[%clk 0:01:09]}  Rc4 {[%clk 0:00:52]} 36. Rd4 {[%clk 0:01:09]}  Rc8 {[%clk 0:00:10]}
37. Rd5 {[%clk 0:01:10]}  Rb8 {[%clk 0:00:11]} 38. Rxf5 {[%clk 0:01:11]}  Ke6 {[%clk 0:00:11]} 39. Rxb5 {[%clk 0:00:32]}  Rxb5 {[%clk 0:00:12]}
40. Kb3 {[%clk 0:00:33]}  Rf5 {[%clk 0:00:12]} 41. b5 {[%clk 0:00:33]}  Rxb5+ {[%clk 0:00:12]} 42. Kc4 {[%clk 0:00:34]}  Rf5 {[%clk 0:00:13]}
43. Kd4 {[%clk 0:00:23]} 0-1

[Event "2026 Biel Blitz Open"]
[Site "Biel, CH"]
[Date "2026.07.19"]
[Round "9"]
[White "Kwiatkowski, Maciej"]
[Black "Gireada, Daniel"]
[Result "1-0"]
[Board "22"]
[TimeControl "180+2"]
[WhiteFideId "1360175"]
[BlackFideId "1206451"]
[WhiteElo "1967"]
[BlackElo "2148"]
[WhiteClock "0:00:11"]
[BlackClock "0:00:25"]
[Variant "Standard"]
[EndDate "2026.07.19"]
[EndTime "14:46:13"]

1. e4 {[%clk 0:00:00]}  c6 {[%clk 0:03:02]} 2. d4 {[%clk 0:00:00]}  d5 {[%clk 0:03:01]} 3. Nc3 {[%clk 0:00:00]}  dxe4 {[%clk 0:00:00]}
4. Nxe4 {[%clk 0:00:00]}  Nf6 {[%clk 0:03:02]} 5. Ng3 {[%clk 0:03:02]}  Bg4 {[%clk 0:02:50]} 6. Be2 {[%clk 0:03:01]}  Bxe2 {[%clk 0:02:48]}
7. N1xe2 {[%clk 0:03:02]}  e6 {[%clk 0:02:45]} 8. O-O {[%clk 0:02:56]}  Nbd7 {[%clk 0:02:36]} 9. c3 {[%clk 0:02:56]}  Bd6 {[%clk 0:02:29]}
10. Bf4 {[%clk 0:02:45]}  Nb6 {[%clk 0:02:24]} 11. Bg5 {[%clk 0:02:37]}  h6 {[%clk 0:02:19]} 12. Bxf6 {[%clk 0:02:22]}  Qxf6 {[%clk 0:02:19]}
13. h3 {[%clk 0:02:11]}  Bc7 {[%clk 0:02:16]} 14. Ne4 {[%clk 0:02:07]}  Qe7 {[%clk 0:02:16]} 15. N2g3 {[%clk 0:02:01]}  Nd5 {[%clk 0:02:09]}
16. Re1 {[%clk 0:01:53]}  O-O {[%clk 0:02:04]} 17. Qf3 {[%clk 0:01:52]}  Rad8 {[%clk 0:01:56]} 18. Rad1 {[%clk 0:01:51]}  Qh4 {[%clk 0:01:39]}
19. Nc5 {[%clk 0:01:38]}  b6 {[%clk 0:01:15]} 20. Nd3 {[%clk 0:01:35]}  Bxg3 {[%clk 0:01:15]} 21. fxg3 {[%clk 0:01:27]}  Qg5 {[%clk 0:01:07]}
22. Kh2 {[%clk 0:01:27]}  Rc8 {[%clk 0:00:53]} 23. Ne5 {[%clk 0:01:26]}  Qe7 {[%clk 0:00:51]} 24. Ng4 {[%clk 0:01:21]}  Nf6 {[%clk 0:00:47]}
25. Ne3 {[%clk 0:01:20]}  Qd7 {[%clk 0:00:44]} 26. Nc4 {[%clk 0:01:14]}  Rfd8 {[%clk 0:00:36]} 27. Ne5 {[%clk 0:01:15]}  Qc7 {[%clk 0:00:36]}
28. Rf1 {[%clk 0:01:16]}  c5 {[%clk 0:00:32]} 29. Ng4 {[%clk 0:00:44]}  Nxg4+ {[%clk 0:00:31]} 30. Qxg4 {[%clk 0:00:45]}  cxd4 {[%clk 0:00:32]}
31. Rxd4 {[%clk 0:00:46]}  Rxd4 {[%clk 0:00:33]} 32. Qxd4 {[%clk 0:00:47]}  Qc5 {[%clk 0:00:30]} 33. Qd7 {[%clk 0:00:43]}  Rc7 {[%clk 0:00:22]}
34. Qe8+ {[%clk 0:00:41]}  Qf8 {[%clk 0:00:21]} 35. Qxf8+ {[%clk 0:00:35]}  Kxf8 {[%clk 0:00:22]} 36. Rd1 {[%clk 0:00:36]}  Ke7 {[%clk 0:00:24]}
37. Kg1 {[%clk 0:00:36]}  Rc5 {[%clk 0:00:23]} 38. Kf2 {[%clk 0:00:36]}  Rd5 {[%clk 0:00:24]} 39. Rxd5 {[%clk 0:00:32]}  exd5 {[%clk 0:00:25]}
40. Ke3 {[%clk 0:00:33]}  Ke6 {[%clk 0:00:25]} 41. Kd4 {[%clk 0:00:34]}  Kd6 {[%clk 0:00:26]} 42. b3 {[%clk 0:00:30]}  b5 {[%clk 0:00:25]}
43. a3 {[%clk 0:00:25]}  a5 {[%clk 0:00:26]} 44. g4 {[%clk 0:00:16]}  g6 {[%clk 0:00:20]} 45. h4 {[%clk 0:00:12]}  f6 {[%clk 0:00:21]}
46. g3 {[%clk 0:00:11]}  h5 {[%clk 0:00:19]} 47. gxh5 {[%clk 0:00:04]}  gxh5 {[%clk 0:00:20]} 48. a4 {[%clk 0:00:03]}  bxa4 {[%clk 0:00:20]}
49. bxa4 {[%clk 0:00:04]}  Kc6 {[%clk 0:00:20]} 50. c4 {[%clk 0:00:04]}  dxc4 {[%clk 0:00:19]} 51. Kxc4 {[%clk 0:00:05]}  Kd6 {[%clk 0:00:15]}
52. Kb5 {[%clk 0:00:05]}  Kd5 {[%clk 0:00:14]} 53. Kxa5 {[%clk 0:00:05]}  Kc5 {[%clk 0:00:15]} 54. Ka6 {[%clk 0:00:05]}  Kc6 {[%clk 0:00:16]}
55. a5 {[%clk 0:00:04]}  Kc7 {[%clk 0:00:15]} 56. Kb5 {[%clk 0:00:05]}  Kb7 {[%clk 0:00:17]} 57. Kc5 {[%clk 0:00:06]}  Ka6 {[%clk 0:00:18]}
58. Kd6 {[%clk 0:00:07]}  Kxa5 {[%clk 0:00:19]} 59. Ke6 {[%clk 0:00:08]}  Kb6 {[%clk 0:00:21]} 60. Kxf6 {[%clk 0:00:09]}  Kc6 {[%clk 0:00:22]}
61. Kg5 {[%clk 0:00:10]}  Kd6 {[%clk 0:00:23]} 62. Kxh5 {[%clk 0:00:08]}  Ke5 {[%clk 0:00:25]} 63. g4 {[%clk 0:00:11]} 1-0

[Event "2026 Biel Blitz Open"]
[Site "Biel, CH"]
[Date "2026.07.19"]
[Round "9"]
[White "Matsumura, Cocoro"]
[Black "King, Alexander"]
[Result "1-0"]
[Board "23"]
[TimeControl "180+2"]
[WhiteFideId "36087114"]
[BlackFideId "1352334"]
[WhiteElo "2131"]
[BlackElo "1854"]
[WhiteTitle "CM"]
[WhiteClock "0:00:53"]
[BlackClock "0:00:04"]
[Variant "Standard"]
[EndDate "2026.07.19"]
[EndTime "14:42:00"]

1. e4 {[%clk 0:03:02]}  c6 {[%clk 0:03:03]} 2. d4 {[%clk 0:03:03]}  d5 {[%clk 0:03:05]} 3. e5 {[%clk 0:03:04]}  Bf5 {[%clk 0:03:05]}
4. h4 {[%clk 0:03:06]}  a6 {[%clk 0:03:07]} 5. c4 {[%clk 0:03:06]}  Bxb1 {[%clk 0:02:46]} 6. Rxb1 {[%clk 0:03:07]}  Qa5+ {[%clk 0:02:42]}
7. Bd2 {[%clk 0:03:06]}  Qxa2 {[%clk 0:02:40]} 8. Nf3 {[%clk 0:02:57]}  dxc4 {[%clk 0:02:06]} 9. Qc1 {[%clk 0:02:58]}  b5 {[%clk 0:02:01]}
10. Ra1 {[%clk 0:02:51]}  Qb3 {[%clk 0:01:39]} 11. Ra3 {[%clk 0:02:52]}  Qxa3 {[%clk 0:01:30]} 12. bxa3 {[%clk 0:02:53]}  e6 {[%clk 0:01:24]}
13. Bb4 {[%clk 0:02:52]}  Bxb4+ {[%clk 0:01:16]} 14. axb4 {[%clk 0:02:53]}  Ne7 {[%clk 0:01:16]} 15. Qg5 {[%clk 0:02:48]}  Nf5 {[%clk 0:00:50]}
16. g4 {[%clk 0:02:44]}  h6 {[%clk 0:00:50]} 17. Qf4 {[%clk 0:02:34]}  Ne7 {[%clk 0:00:50]} 18. Bg2 {[%clk 0:02:25]}  Nd7 {[%clk 0:00:44]}
19. O-O {[%clk 0:02:05]}  Nb6 {[%clk 0:00:39]} 20. Rb1 {[%clk 0:01:52]}  Ned5 {[%clk 0:00:23]} 21. Qc1 {[%clk 0:01:51]}  O-O {[%clk 0:00:18]}
22. Nd2 {[%clk 0:01:50]}  Nf4 {[%clk 0:00:16]} 23. Bf1 {[%clk 0:01:37]}  Rfd8 {[%clk 0:00:11]} 24. Ne4 {[%clk 0:01:37]}  Nfd5 {[%clk 0:00:03]}
25. g5 {[%clk 0:01:36]}  h5 {[%clk 0:00:04]} 26. Nf6+ {[%clk 0:01:23]}  gxf6 {[%clk 0:00:04]} 27. gxf6 {[%clk 0:01:23]}  Kh7 {[%clk 0:00:00]}
28. Bg2 {[%clk 0:01:23]}  Rg8 {[%clk 0:00:00]} 29. Kh1 {[%clk 0:01:19]}  Rg4 {[%clk 0:00:00]} 30. Qc2+ {[%clk 0:00:53]} 1-0

[Event "2026 Biel Blitz Open"]
[Site "Biel, CH"]
[Date "2026.07.19"]
[Round "9"]
[White "Havolli, Daut"]
[Black "Ragavan, Samarth Rajesh"]
[Result "0-1"]
[Board "24"]
[TimeControl "180+2"]
[WhiteFideId "1315200"]
[BlackFideId "39918106"]
[WhiteElo "1950"]
[BlackElo "2101"]
[WhiteClock "0:01:00"]
[BlackClock "0:01:41"]
[Variant "Standard"]
[EndDate "2026.07.19"]
[EndTime "14:35:40"]

1. d4 {[%clk 0:03:03]}  Nf6 {[%clk 0:03:04]} 2. Bf4 {[%clk 0:03:04]}  d5 {[%clk 0:03:04]} 3. Nc3 {[%clk 0:03:05]}  a6 {[%clk 0:03:04]}
4. f3 {[%clk 0:03:05]}  e6 {[%clk 0:03:03]} 5. Qd2 {[%clk 0:03:06]}  c5 {[%clk 0:03:03]} 6. e3 {[%clk 0:03:07]}  Nc6 {[%clk 0:03:04]}
7. O-O-O {[%clk 0:03:05]}  b5 {[%clk 0:03:01]} 8. dxc5 {[%clk 0:03:05]}  Bxc5 {[%clk 0:03:02]} 9. e4 {[%clk 0:03:00]}  d4 {[%clk 0:03:01]}
10. Nce2 {[%clk 0:03:00]}  e5 {[%clk 0:03:02]} 11. Bg3 {[%clk 0:03:01]}  O-O {[%clk 0:03:00]} 12. Bh4 {[%clk 0:02:55]}  Be6 {[%clk 0:03:00]}
13. Kb1 {[%clk 0:02:56]}  Rc8 {[%clk 0:02:52]} 14. Nc1 {[%clk 0:02:56]}  Qb6 {[%clk 0:02:50]} 15. Bxf6 {[%clk 0:02:55]}  gxf6 {[%clk 0:02:47]}
16. Qh6 {[%clk 0:02:51]}  Nb4 {[%clk 0:02:46]} 17. a3 {[%clk 0:02:23]}  Nxc2 {[%clk 0:02:38]} 18. Kxc2 {[%clk 0:02:07]}  d3+ {[%clk 0:02:30]}
19. Kb1 {[%clk 0:02:03]}  Be3 {[%clk 0:02:29]} 20. Qh4 {[%clk 0:01:53]}  Bxc1 {[%clk 0:02:11]} 21. Rxc1 {[%clk 0:01:45]}  Rxc1+ {[%clk 0:02:02]}
22. Kxc1 {[%clk 0:01:45]}  Qe3+ {[%clk 0:02:02]} 23. Kb1 {[%clk 0:01:41]}  Rc8 {[%clk 0:01:56]} 24. Ne2 {[%clk 0:00:59]}  dxe2 {[%clk 0:01:46]}
25. Bxe2 {[%clk 0:01:01]}  Qxe2 {[%clk 0:01:44]} 26. Qxf6 {[%clk 0:01:00]}  Qc2+ {[%clk 0:01:41]} 0-1

[Event "2026 Biel Blitz Open"]
[Site "Biel, CH"]
[Date "2026.07.19"]
[Round "9"]
[White "Xu, Chang(CQ)"]
[Black "Floure, Alexan"]
[Result "1-0"]
[Board "25"]
[TimeControl "180+2"]
[WhiteFideId "8641757"]
[BlackFideId "1346610"]
[WhiteElo "2049"]
[BlackElo "1960"]
[WhiteClock "0:00:28"]
[BlackClock "0:00:04"]
[Variant "Standard"]
[EndDate "2026.07.19"]
[EndTime "14:41:46"]

1. e4 {[%clk 0:03:03]}  c5 {[%clk 0:03:03]} 2. Nf3 {[%clk 0:03:04]}  e6 {[%clk 0:03:04]} 3. d4 {[%clk 0:03:05]}  cxd4 {[%clk 0:03:05]}
4. Nxd4 {[%clk 0:03:06]}  Bc5 {[%clk 0:03:05]} 5. Nb3 {[%clk 0:03:03]}  Bb6 {[%clk 0:03:05]} 6. Bd3 {[%clk 0:03:01]}  Nc6 {[%clk 0:03:03]}
7. Nc3 {[%clk 0:03:00]}  Nge7 {[%clk 0:03:00]} 8. O-O {[%clk 0:02:57]}  O-O {[%clk 0:03:00]} 9. Kh1 {[%clk 0:02:56]}  f5 {[%clk 0:02:59]}
10. f4 {[%clk 0:02:43]}  fxe4 {[%clk 0:02:53]} 11. Nxe4 {[%clk 0:02:43]}  d5 {[%clk 0:02:47]} 12. Ng5 {[%clk 0:02:42]}  g6 {[%clk 0:02:36]}
13. Qe2 {[%clk 0:02:30]}  Qd6 {[%clk 0:02:33]} 14. c3 {[%clk 0:02:25]}  Bd7 {[%clk 0:02:28]} 15. Bd2 {[%clk 0:02:25]}  Rae8 {[%clk 0:02:28]}
16. Rf3 {[%clk 0:02:25]}  e5 {[%clk 0:02:16]} 17. fxe5 {[%clk 0:02:20]}  Nxe5 {[%clk 0:02:15]} 18. Rxf8+ {[%clk 0:02:15]}  Rxf8 {[%clk 0:02:15]}
19. Re1 {[%clk 0:02:11]}  N7c6 {[%clk 0:02:02]} 20. Rf1 {[%clk 0:01:44]}  Bg4 {[%clk 0:01:39]} 21. Rxf8+ {[%clk 0:01:40]}  Qxf8 {[%clk 0:01:39]}
22. Qf1 {[%clk 0:01:29]}  Qe7 {[%clk 0:01:33]} 23. h3 {[%clk 0:01:19]}  Bd7 {[%clk 0:01:23]} 24. Be2 {[%clk 0:01:16]}  Bf5 {[%clk 0:00:55]}
25. Nf3 {[%clk 0:01:13]}  Nf7 {[%clk 0:00:49]} 26. Bd3 {[%clk 0:01:12]}  Nd6 {[%clk 0:00:48]} 27. Bf4 {[%clk 0:01:04]}  Ne4 {[%clk 0:00:46]}
28. Nbd4 {[%clk 0:01:02]}  Bd7 {[%clk 0:00:31]} 29. Nxc6 {[%clk 0:00:51]}  bxc6 {[%clk 0:00:32]} 30. Nd4 {[%clk 0:00:47]}  Qf7 {[%clk 0:00:27]}
31. Kh2 {[%clk 0:00:37]}  Bc7 {[%clk 0:00:26]} 32. Bxc7 {[%clk 0:00:34]}  Nf2 {[%clk 0:00:15]} 33. Bg3 {[%clk 0:00:32]}  Nxd3 {[%clk 0:00:05]}
34. Qxd3 {[%clk 0:00:32]}  a5 {[%clk 0:00:06]} 35. Nf3 {[%clk 0:00:32]}  Bf5 {[%clk 0:00:07]} 36. Qd4 {[%clk 0:00:33]}  Be4 {[%clk 0:00:08]}
37. Qe3 {[%clk 0:00:30]}  Qf5 {[%clk 0:00:08]} 38. Qf4 {[%clk 0:00:31]}  Qe6 {[%clk 0:00:09]} 39. Qd6 {[%clk 0:00:31]}  Qf5 {[%clk 0:00:08]}
40. Qe5 {[%clk 0:00:30]}  Qf7 {[%clk 0:00:08]} 41. Ng5 {[%clk 0:00:31]}  Qf1 {[%clk 0:00:07]} 42. Nxe4 {[%clk 0:00:27]}  dxe4 {[%clk 0:00:04]}
43. Qxe4 {[%clk 0:00:28]}  Qf6 {[%clk 0:00:04]} 44. Qc4+ {[%clk 0:00:27]}  Kg7 {[%clk 0:00:04]} 45. Qd4 {[%clk 0:00:28]} 1-0